{"text_format":"1","workbook":"xlsx","n_sheets":6,"sheets":["Clinical Trials Hist Req","Document Attachment","Service Cost Sheet","Special Stains Cost Sheet","Lists","Price List"],"not_rendered":{"charts":0,"images":1,"macros":1,"external_links":0,"defined_names":3,"comments":1,"pivot_tables":0},"unopened":[],"bounds":{"document_bytes":16777216,"sheet_cells":100000,"rows_first":2000,"rows_last":500,"rows_between":2000,"halvings":0,"cell_chars":16384,"cell_head_chars":4096},"cells_cut":0,"cells_raw":0,"read":"whole","date_system":"1900"}

{"sheet":"Clinical Trials Hist Req","index":0,"n_rows":48,"n_cols":18,"rows_kept":48,"cut":false,"hidden":false,"merged":[[27,13,28,13],[45,2,45,12],[47,1,47,14],[38,2,38,7],[39,2,39,7],[40,2,40,9],[41,2,41,9],[42,3,42,9],[43,2,43,12],[34,7,34,9],[35,2,35,6],[35,7,35,9],[36,2,36,13],[44,2,44,12],[37,2,37,7],[29,2,34,6],[29,7,29,9],[30,7,30,9],[31,7,31,9],[32,7,32,9],[33,7,33,9],[0,1,0,14],[1,1,1,14],[3,1,3,14],[17,2,17,13],[18,2,18,9],[6,3,6,5],[8,3,8,7],[8,9,8,11],[9,3,9,7],[12,2,12,5],[13,12,14,13],[5,3,5,11],[27,2,28,6],[22,2,22,9],[9,9,9,11],[13,2,14,11],[19,2,19,13],[20,2,20,9],[21,2,21,9],[23,2,23,9],[24,2,24,9],[25,2,25,13],[26,2,26,9],[27,8,28,8],[27,9,28,9],[27,10,28,10],[27,11,28,11],[27,12,28,12]]}
[null,"Clinical Trial Histology Service Request"]
[null,"MUSC Department of Pathology and Laboratory Medicine "]
[]
[null,"THIS SECTION TO BE COMPLETED BY REQUESTOR"]
[]
[null,null,"Protocol Title:",null,null,null,null,null,null,null,null,null,"Request Date:"]
[null,null,"Sponsor:",null,null,null,null,"Protocol #:",null,"IRB#:",null,"CTO# (HCC studies):"]
[]
[null,null,"PI Name:",null,null,null,null,null,"PI Dept:",null,null,null,"PI Phone:"]
[null,null,"Study Coord Name:",null,null,null,null,null,"Study Coord E-mail:",null,null,null,"Study Coord Phone/Pager:"]
[]
[]
[null,null,"Special Instructions:",null,null,null,null,null,null,null,null,null,"Study Type:"]
[null,null,null,null,null,null,null,null,null,null,null,null,"Non-Corporate"]
[]
[]
[]
[null,null,"THIS SECTION TO BE COMPLETED BY HISTOLOGY"]
[null,null,"Service",null,null,null,null,null,null,null,"Unit","# Units","Unit Cost","Total Charge"]
[null,null,"Tissue Preparation"]
[null,null,"Tissue prep and embed in paraffin",null,null,null,null,null,null,null,"Block",null,{"$f":"IF($M$14=\"Corporate\",+'Service Cost Sheet'!O8,+'Service Cost Sheet'!L8)","v":12.84},{"$f":"L21*M21","v":0}]
[null,null,"Tissue prep and embed in OCT",null,null,null,null,null,null,null,"Block",null,{"$f":"IF($M$14=\"Corporate\",+'Service Cost Sheet'!O10,+'Service Cost Sheet'!L10)","v":12.913333333333334},{"$f":"L22*M22","v":0}]
[null,null,"Cut and mount Paraffin/OCT section on slide",null,null,null,null,null,null,null,"Slide",null,{"$f":"IF($M$14=\"Corporate\",+'Service Cost Sheet'!O11,+'Service Cost Sheet'!L11)","v":3.75},{"$f":"L23*M23","v":0}]
[null,null,"Block recut/facing charge",null,null,null,null,null,null,null,"Block",null,{"$f":"IF($M$14=\"Corporate\",+'Service Cost Sheet'!O12,+'Service Cost Sheet'!L12)","v":3.9166666666666665},{"$f":"L24*M24","v":0}]
[null,null,"Thick, Scroll or Punch section for RNA/DNA analysis",null,null,null,null,null,null,null,"Slide",null,{"$f":"IF($M$14=\"Corporate\",+'Service Cost Sheet'!O13,+'Service Cost Sheet'!L13)","v":23.5},{"$f":"L25*M25","v":0}]
[null,null,"Staining"]
[null,null,"Hematoxylin and eosin (H & E)",null,null,null,null,null,null,null,"Slide",null,{"$f":"IF($M$14=\"Corporate\",+'Service Cost Sheet'!O15,+'Service Cost Sheet'!L15)","v":1.8033333333333332},{"$f":"L27*M27","v":0}]
[null,null,"Immunostain\n(labor cost per batch + unit cost per slide)",null,null,null,null,"# Batches:","Labor cost per batch:",{"$f":"(IF($M$14=\"Corporate\",'Service Cost Sheet'!$G$17,'Service Cost Sheet'!$G$16))","v":188},"Slide",null,{"$f":"IF($M$14=\"Corporate\",+'Service Cost Sheet'!O16,+'Service Cost Sheet'!L16)","v":3.05},{"$f":"IF(L28>0,((L28*M28)+(J28*H29)),0)","v":0}]
[null,null,null,null,null,null,null,1]
[null,null,"Special Stains",null,null,null,null,"Periodic Acid Schiff",null,null,"Slide",null,{"$f":"IF($M$14=\"Corporate\",+'Service Cost Sheet'!O18,+'Service Cost Sheet'!L18)","v":6.07},{"$f":"L30*M30","v":0}]
[null,null,null,null,null,null,null,"Oil Red O",null,null,"Slide",null,{"$f":"IF($M$14=\"Corporate\",+'Service Cost Sheet'!O19,+'Service Cost Sheet'!L19)","v":5.53},0]
[null,null,null,null,null,null,null,"Picro Sirus Red",null,null,"Slide",null,{"$f":"IF($M$14=\"Corporate\",+'Service Cost Sheet'!O20,+'Service Cost Sheet'!L20)","v":5.53},0]
[null,null,null,null,null,null,null,"Luxol Fast Blue",null,null,"Slide",null,{"$f":"IF($M$14=\"Corporate\",+'Service Cost Sheet'!O21,+'Service Cost Sheet'!L21)","v":6.3133333333333335},0]
[null,null,null,null,null,null,null,"Massons Trichrome",null,null,"Slide",null,{"$f":"IF($M$14=\"Corporate\",+'Service Cost Sheet'!O22,+'Service Cost Sheet'!L22)","v":10.203333333333333},0]
[null,null,null,null,null,null,null,"Bielschowski",null,null,"Slide",null,{"$f":"IF($M$14=\"Corporate\",+'Service Cost Sheet'!O23,+'Service Cost Sheet'!L23)","v":11.093333333333334},0]
[null,null,"Other:",null,null,null,null,null,null,null,"Slide",null,{"$f":"IF($M$14=\"Corporate\",+'Special Stains Cost Sheet'!A6*3,+'Special Stains Cost Sheet'!A6)","v":0},0,null,">>>>To enter unit cost for other stains:","Go to Special Stains Cost Sheet","(Lab personnel use only.)"]
[null,null,"Other Services"]
[null,null,"Block/Slide retrieval from archive",null,null,null,null,null,"Hourly Rate:",{"$f":"+IF($M$14=\"Corporate\",'Service Cost Sheet'!$K$5*3,'Service Cost Sheet'!$K$5)","v":47},"Minutes",null,{"$f":"+J38/60","v":0.78333333333333333},{"$f":"L38*M38","v":0}]
[null,null,"Other technical assistance ",null,null,null,null,null,"Hourly Rate:",{"$f":"+IF($M$14=\"Corporate\",'Service Cost Sheet'!$K$5*3,'Service Cost Sheet'!$K$5)","v":47},"Minutes",null,{"$f":"+J39/60","v":0.78333333333333333},0]
[null,null,"Other administrative assistance\n(IRB paperwork, report searches, etc .)",null,null,null,null,null,"Hourly Rate:",{"$f":"+IF($M$14=\"Corporate\",'Service Cost Sheet'!$K$5*3,'Service Cost Sheet'!$K$5)","v":47},"Minutes",null,0.78333333333333333,0]
[null,null,"Pathologist Review",null,null,null,null,null,null,null,"Flat Fee",null,{"$f":"IF($M$14=\"Corporate\",+'Service Cost Sheet'!O34,+'Service Cost Sheet'!L34)","v":100},0]
[null,null,"Expedited pathology review for clinical trials",null,null,null,null,null,null,null,"Flat Fee",null,{"$f":"IF($M$14=\"Corporate\",+'Service Cost Sheet'!O35,+'Service Cost Sheet'!L35)","v":100},0]
[null,null,"Other Svc:",null,null,null,null,null,null,null,null,null,null,0]
[null,null,"Total",null,null,null,null,null,null,null,null,null,null,{"$f":"+SUM(N21:N25)+SUM(N27:N36)+SUM(N38:N43)","v":0}]
[null,null,"Discount %"]
[null,null,"TOTAL COST PER PATIENT:",null,null,null,null,null,null,null,null,null,null,{"$f":"IF(N45>0,N44*(1-N45),N44)","v":0}]
[]
[null,"Submit this form to: \nHistochemical Core Lab\nPhone: 792-5648 • Fax: 792-4157 • email: histocore@musc.edu  "]

{"sheet":"Document Attachment","index":1,"n_rows":4,"n_cols":1,"rows_kept":4,"cut":false,"hidden":false,"merged":[[3,0,10,1]]}
[]
[]
[]
["To print or edit document after inserting, right-click on document then choose 'Document Object>Open'.  The document will open in it's original application (Word, etc.) where you can edit or print."]

{"sheet":"Service Cost Sheet","index":2,"n_rows":36,"n_cols":27,"rows_kept":36,"cut":false,"hidden":true,"merged":[[65508,5,65508,6],[2,9,2,11],[17,4,17,6],[18,4,18,6],[30,0,30,6],[34,0,34,6],[33,0,33,6],[29,0,29,6],[32,0,32,6],[31,0,31,6],[27,0,27,14],[17,0,22,3],[13,0,13,14],[10,0,10,6],[11,0,11,6],[19,4,19,6],[1,0,1,14],[0,0,0,14],[14,0,14,6],[2,12,2,14],[2,7,3,7],[2,8,3,8],[7,0,7,6],[4,2,4,5],[20,4,20,6],[8,0,8,6],[9,0,9,6],[6,0,6,14],[4,9,5,9],[4,10,5,10],[4,11,5,11],[4,12,5,12],[12,0,12,6],[4,13,5,13],[15,0,16,4],[15,7,16,7],[15,8,16,8],[15,9,16,9],[15,14,16,14],[34,12,34,13],[23,0,23,6],[35,0,35,6],[35,7,35,8],[35,9,35,11],[35,12,35,14],[34,7,34,8],[28,7,28,8],[28,9,28,11],[28,12,28,14],[33,9,33,10],[34,9,34,10],[29,7,29,8],[30,7,30,8],[31,7,31,8],[32,7,32,8],[33,12,33,13],[33,7,33,8],[21,4,21,6],[22,4,22,6],[15,10,16,10],[15,11,16,11],[15,12,16,12],[15,13,16,13],[29,9,29,10],[30,9,30,10],[31,9,31,10],[32,9,32,10],[29,12,29,13],[30,12,30,13],[31,12,31,13],[32,12,32,13]]}
["Research Histology Laboratory Cost Sheet"]
["MUSC Department of Pathology and Laboratory Medicine ",null,null,null,null,null,null,null,null,null,null,null,null,null,null,null,null,null,null,null,null,null,null,null,null,null,"X"]
[null,null,null,null,null,null,null,"Unit","Technical Time/unit (minutes)","Non-Corporate Rate",null,null,"Corporate Rate"]
["Service",null,null,null,null,null,null,null,"Technical Time","Base Rate per unit","Tech Fee per unit","Total","Base Rate per unit","Tech. Time","Total"]
[null,null,null,null,null,null,null,null,null,"Hourly rate:",47,null,"Hourly rate:",{"$f":"+K5*3","v":141}]
[]
["Tissue Preparation"]
["Tissue prep, face and embed in paraffin",null,null,null,null,null,null,"Block",15,1.0900000000000001,{"$f":"+I8/60*$K$5","v":11.75},{"$f":"+J8+K8","v":12.84},{"$f":"+J8*3","v":3.2700000000000005},35.25,{"$f":"+M8+N8","v":38.520000000000003}]
["Cut and mount paraffin section on slide",null,null,null,null,null,null,"Slide",3,1.4,2.35,{"$f":"+J9+K9","v":3.75},4.1999999999999993,7.0500000000000007,11.25]
["Tissue prep, face and embed in OCT",null,null,null,null,null,null,"Block",13,2.73,10.183333333333334,12.913333333333334,8.19,30.55,38.74]
["Cut and mount OCT section on slide",null,null,null,null,null,null,"Slide",3,1.4,2.35,3.75,4.1999999999999993,7.0500000000000007,11.25]
["Block recut/facing charge",null,null,null,null,null,null,"Block",5,0,3.9166666666666665,3.9166666666666665,0,11.75,11.75]
["Thick Section for RNA/DNA Analysis",null,null,null,null,null,null,"Slide",30,0,{"$f":"+I13/60*$K$5","v":23.5},{"$f":"+J13+K13","v":23.5},0,70.5,{"$f":"+M13+N13","v":70.5}]
["Staining"]
["Hematoxylin and eosin (H & E)",null,null,null,null,null,null,"Slide",1,1.02,{"$f":"+I15/60*$K$5","v":0.78333333333333333},{"$f":"+J15+K15","v":1.8033333333333332},{"$f":"+J15*3","v":3.06},{"$f":"+K15*3","v":2.35},{"$f":"+M15+N15","v":5.41}]
["Immunostain\n(labor cost per batch + unit cost per slide)",null,null,null,null,"Labor cost per batch Non-Corp:",{"$f":"+K5*4","v":188},"Slide","4 hrs/batch",3.05,null,3.05,{"$f":"+J16*3","v":9.1499999999999986},null,9.1499999999999986]
[null,null,null,null,null,"Labor cost per batch Corporate:",{"$f":"+N5*4","v":564}]
["Special Stains",null,null,null,"Periodic Acid Schiff",null,null,"Slide",6,1.37,4.7,6.07,{"$f":"+J18*3","v":4.1100000000000003},14.100000000000001,18.21]
[null,null,null,null,"Oil Red O",null,null,"Slide",6,0.83,4.7,5.53,2.4899999999999998,14.100000000000001,16.59]
[null,null,null,null,"Picro Sirus Red",null,null,"Slide",6,0.83,4.7,5.53,2.4899999999999998,14.100000000000001,16.59]
[null,null,null,null,"Luxol Fast Blue",null,null,"Slide",7,0.83,5.4833333333333334,6.3133333333333335,2.4899999999999998,16.45,18.939999999999998]
[null,null,null,null,"Massons Trichrome",null,null,"Slide",10,2.37,7.833333333333333,10.203333333333333,7.11,23.5,30.61]
[null,null,null,null,"Bielschowski",null,null,"Slide",10,3.26,7.833333333333333,11.093333333333334,9.7799999999999994,23.5,33.28]
["Other Special Stains (using average special stains supply cost + labor cost/unit) - enter approx # of minutes per slide",null,null,null,null,null,null,"Slide",null,1.76,{"$f":"+I24/60*$K$5","v":0},{"$f":"+J24+K24","v":1.76},5.28,0,5.28]
[]
[]
[]
["Other Services"]
["Service",null,null,null,null,null,null,"Unit",null,"Total Non-Corporate Rate",null,null,"Total Corporate Rate"]
["Block retrieval from archive",null,null,null,null,null,null,"Minutes",null,"Hourly rate",null,{"$f":"+$K$5","v":47},"Hourly rate",null,{"$f":"+$N$5","v":141}]
["Slide retrieval from archive",null,null,null,null,null,null,"Minutes",null,"Hourly rate",null,{"$f":"+$K$5","v":47},"Hourly rate",null,{"$f":"+$N$5","v":141}]
["Other technical assistance",null,null,null,null,null,null,"Minutes",null,"Hourly rate",null,47,"Hourly rate",null,141]
["Other administrative assistance\n(IRB paperwork, report searches, etc )",null,null,null,null,null,null,"Minutes",null,"Hourly rate",null,47,"Hourly rate",null,141]
["Pathologist Review",null,null,null,null,null,null,"Each",null,"Flat Fee",null,100,"Flat Fee",null,{"$f":"100*3","v":300}]
["Expedited pathology review for clinical trials",null,null,null,null,null,null,"Each",null,"Flat Fee",null,100,"Flat Fee",null,{"$f":"100*3","v":300}]
["Other Svc:",null,null,null,null,null,null,"Variable",null,"Hourly rate per unit + supply cost per unit",null,null,"<<< Non-Corporate Rate x3"]

{"sheet":"Special Stains Cost Sheet","index":3,"n_rows":14,"n_cols":14,"rows_kept":14,"cut":false,"hidden":false,"merged":[[3,0,4,0],[5,0,8,0],[4,4,5,9],[4,10,5,10],[4,11,5,11],[1,4,3,9],[1,10,3,10],[1,11,1,13],[2,11,3,11],[2,12,3,12],[2,13,3,13],[4,13,5,13],[5,2,11,3],[6,4,6,12],[7,4,7,12],[8,4,8,12],[9,4,9,12],[10,4,10,12],[11,4,11,12],[4,12,5,12]]}
[]
[null,null,null,null,"Special Stains",null,null,null,null,null,"Technical Time/unit (minutes)","Non-Corporate Rate"]
[null,null,null,null,null,null,null,null,null,null,null,"Avg Supply Cost","Labor Calculation","Total Cost/Unit"]
["Enter Other Special Stains Unit Cost here:"]
[null,null,null,null,"Other Special Stains - enter approx # of minutes per slide",null,null,null,null,null,null,{"$f":"'Service Cost Sheet'!J24","v":1.76},{"$f":"+K5/60*'Service Cost Sheet'!$K$5","v":0},{"$f":"IF(K5>0,+L5+M5,0)","v":0}]
[null,">","Use table to the right to help determine unit cost by either:\n1- entering approx. # of minutes per slide and using calculated cost (in red cell) OR \n2- using cost of a comparable stain in list"]
[null,null,null,null,"Periodic Acid Schiff",null,null,null,null,null,null,null,null,{"$f":"+'Service Cost Sheet'!L18","v":6.07}]
[null,null,null,null,"Oil Red O",null,null,null,null,null,null,null,null,{"$f":"+'Service Cost Sheet'!L19","v":5.53}]
[null,null,null,null,"Picro Sirus Red",null,null,null,null,null,null,null,null,{"$f":"+'Service Cost Sheet'!L20","v":5.53}]
[null,null,null,null,"Luxol Fast Blue",null,null,null,null,null,null,null,null,{"$f":"+'Service Cost Sheet'!L21","v":6.3133333333333335}]
[null,null,null,null,"Massons Trichrome",null,null,null,null,null,null,null,null,{"$f":"+'Service Cost Sheet'!L22","v":10.203333333333333}]
[null,null,null,null,"Bielschowski",null,null,null,null,null,null,null,null,{"$f":"+'Service Cost Sheet'!L23","v":11.093333333333334}]
[]
["Return to Clinical Trials Hist Request Form"]

{"sheet":"Lists","index":4,"n_rows":5,"n_cols":3,"rows_kept":5,"cut":false,"hidden":true,"merged":[]}
["Block",null,"Corporate"]
["Slide",null,"Non-Corporate"]
["Minutes"]
["Flat Fee"]
["Each"]

{"sheet":"Price List","index":5,"n_rows":28,"n_cols":15,"rows_kept":28,"cut":false,"hidden":true,"merged":[[1,12,1,14],[9,0,9,6],[3,2,3,5],[1,7,2,7],[1,8,2,8],[1,9,1,11],[4,0,4,14],[5,0,5,6],[6,0,6,6],[7,0,7,6],[8,0,8,6],[14,4,14,6],[15,4,15,6],[16,4,16,6],[17,4,17,6],[18,4,18,6],[25,0,25,6],[26,0,26,6],[27,0,27,6],[20,0,20,3],[1,0,2,6],[19,4,19,6],[20,4,20,6],[21,0,21,14],[22,0,22,6],[23,0,23,6],[24,0,24,6],[10,0,10,6],[11,0,11,14],[12,0,12,6],[13,0,13,6],[14,0,19,3]]}
["Histology Price List"]
["Service",null,null,null,null,null,null,"Unit","Technical Time/unit (minutes)","Federal Rate",null,null,"Corporate Rate"]
[null,null,null,null,null,null,null,null,"Technical Time","Base Rate per unit","Tech Fee per unit","Total Fee/Unit","Base Rate per unit","Tech. Time","Total Fee/Unit"]
[null,null,null,null,null,null,null,null,null,"Hourly rate:",47,null,"Hourly Rate",{"$f":"+K4*3","v":141}]
["Tissue Preparation"]
["Tissue prep, face and embed in paraffin",null,null,null,null,null,null,"Block",15,1.0900000000000001,{"$f":"+I6/60*$K$4","v":11.75},{"$f":"+J6+K6","v":12.84},{"$f":"+J6*3","v":3.2700000000000005},35.25,{"$f":"+M6+N6","v":38.520000000000003}]
["Cut and mount paraffin section on slide",null,null,null,null,null,null,"Slide",3,1.4,{"$f":"+I7/60*$K$4","v":2.35},{"$f":"+J7+K7","v":3.75},4.1999999999999993,7.0500000000000007,11.25]
["Tissue prep, face and embed in OCT",null,null,null,null,null,null,"Block",13,2.73,10.183333333333334,12.913333333333334,8.19,30.55,38.74]
["Cut and mount OCT section on slide",null,null,null,null,null,null,"Slide",3,1.4,2.35,3.75,4.1999999999999993,7.0500000000000007,11.25]
["Block recut/facing charge",null,null,null,null,null,null,"Block",5,null,3.9166666666666665,3.9166666666666665,0,11.75,11.75]
["Thick Section for RNA/DNA Analysis",null,null,null,null,null,null,"Slide",30,null,23.5,23.5,0,70.5,70.5]
["Staining"]
["Hematoxylin and eosin (H & E)",null,null,null,null,null,null,"Slide",1,1.02,{"$f":"+I13/60*$K$4","v":0.78333333333333333},{"$f":"+J13+K13","v":1.8033333333333332},{"$f":"+J13*3","v":3.06},{"$f":"+K13*3","v":2.35},{"$f":"+M13+N13","v":5.41}]
["Immunostain\n(Base rate/slide plus labor cost per batch)",null,null,null,null,null,null,"# Slides + # Batches","n/a",3.05,"$188/batch","$3.05 + Labor$ /batch",{"$f":"+J14*3","v":9.1499999999999986},"$564/batch","$9.15 +  Labor$ /batch"]
["Special Stains",null,null,null,"Periodic Acid Schiff",null,null,"Slide",6,1.37,{"$f":"+I15/60*$K$4","v":4.7},6.07,{"$f":"+J15*3","v":4.1100000000000003},{"$f":"+K15*3","v":14.100000000000001},18.21]
[null,null,null,null,"Oil Red O",null,null,"Slide",6,0.83,4.7,5.53,2.4899999999999998,14.100000000000001,16.59]
[null,null,null,null,"Picro Sirus Red",null,null,"Slide",6,0.83,4.7,5.53,2.4899999999999998,14.100000000000001,16.59]
[null,null,null,null,"Luxol Fast Blue",null,null,"Slide",7,0.83,5.4833333333333334,6.3133333333333335,2.4899999999999998,16.45,18.939999999999998]
[null,null,null,null,"Massons Trichrome",null,null,"Slide",10,2.37,7.833333333333333,10.203333333333333,7.11,23.5,30.61]
[null,null,null,null,"Bielschowski",null,null,"Slide",10,3.26,7.833333333333333,11.093333333333334,9.7799999999999994,23.5,33.28]
[null,null,null,null,"Other Special Stains",null,null,"Slide","variable","variable","$47/hr","Materials+Tech Time","variable","$141/hr","Materials+ Tech Time"]
["Other Services"]
["Block retrieval from archive",null,null,null,null,null,null,"Minutes","variable",null,"$47/hr",{"$f":"+K23","v":"$47/hr"},null,"$141/hr","$141/hr"]
["Slide retrieval from archive",null,null,null,null,null,null,"Minutes","variable",null,"$47/hr",{"$f":"+K24","v":"$47/hr"},null,"$141/hr","$141/hr"]
["Other technical assistance",null,null,null,null,null,null,"Minutes","variable",null,"$47/hr","$47/hr",null,"$141/hr","$141/hr"]
["Other administrative assistance\n(IRB paperwork, report searches, etc - @ $47 hrly rate)",null,null,null,null,null,null,"Minutes","variable",null,"$47/hr","$47/hr",null,"$141/hr","$141/hr"]
["Pathologist Review",null,null,null,null,null,null,"Flat Fee",null,null,null,100,null,null,{"$f":"100*3","v":300}]
["Expedited pathology review for clinical trials",null,null,null,null,null,null,"Flat Fee",null,null,null,100,null,null,{"$f":"100*3","v":300}]